fUSD/lending_fUSD_20250906
["ID","MTS","AMOUNT","RATE_DAILY","PERIOD"]
[383924587,1757172726643,-563.8,0.00037534,8]
[383924588,1757172726655,-400.0,0.00037534,8]
[383924589,1757172726665,-1019.63,0.00037534,8]
[383924590,1757172726675,-436.24,0.00037534,8]
[383924591,1757172726684,-454.0,0.00037534,8]
[383924592,1757172726694,-400.0,0.00037534,8]
[383924593,1757172726704,-400.0,0.00037534,8]
[383924594,1757172726715,-400.0,0.00037534,8]
[383924595,1757172726725,-400.0,0.00037534,8]
[383924596,1757172726734,-400.0,0.00037534,8]
[383924597,1757172726742,-400.0,0.00037534,8]
[383924598,1757172726750,-703.69,0.00037534,8]
[383924599,1757172726758,-400.0,0.00037534,8]
[383924600,1757172726767,-400.0,0.00037534,8]
[383924601,1757172726776,-400.0,0.00037534,8]
[383924602,1757172726785,-400.0,0.00037534,8]
[383924603,1757172726794,-400.0,0.00037534,8]
[383924604,1757172726803,-400.0,0.00037534,8]
[383924605,1757172726813,-415.66450452,0.00037534,8]
[383924606,1757172726822,-400.0,0.00037534,8]
[383924607,1757172726831,-400.0,0.00037534,8]
[383924608,1757172726841,-407.35,0.00037534,8]
[383924609,1757172726850,-400.0,0.00037534,8]
[383924610,1757172726859,-400.0,0.00037534,8]
[383924611,1757172726868,-400.0,0.00037534,8]
[383924612,1757172726877,-400.0,0.00037534,8]
[383924613,1757172726887,-400.0,0.00037534,8]
[383924614,1757172726898,-400.0,0.00037534,8]
[383924615,1757172726908,-400.0,0.00037534,8]
[383924616,1757172726919,-400.0,0.00037534,8]
[383924617,1757172726930,-400.0,0.00037534,8]
[383924618,1757172726941,-480.23,0.00037534,8]
[383924619,1757172726951,-517.01322176,0.00037534,8]
[383924620,1757172726960,-400.0,0.00037534,8]
[383924621,1757172726971,-400.0,0.00037534,8]
[383924622,1757172726980,-400.0,0.00037534,8]
[383924623,1757172726989,-400.0,0.00037534,8]
[383924624,1757172726998,-512.18,0.00037534,8]
[383924625,1757172727007,-400.0,0.00037534,8]
[383924626,1757172727017,-456.59814394,0.00037534,8]
[383924627,1757172727026,-590.96,0.00037534,8]
[383924628,1757172727035,-400.0,0.00037534,8]
[383924629,1757172727044,-400.0,0.00037534,8]
[383924630,1757172727052,-400.0,0.00037534,8]
[383924631,1757172727061,-400.0,0.00037534,8]
[383924632,1757172727070,-518.84367372,0.00037534,8]
[383924633,1757172727078,-400.0,0.00037534,8]
[383924634,1757172727087,-400.0,0.00037534,8]
[383924635,1757172727095,-400.0,0.00037534,8]
[383924636,1757172727104,-400.0,0.00037534,8]
[383924637,1757172727113,-400.0,0.00037534,8]
[383924638,1757172727122,-400.0,0.00037534,8]
[383924639,1757172727130,-400.0,0.00037534,8]
[383924640,1757172727138,-400.0,0.00037534,8]
[383924641,1757172727147,-400.0,0.00037534,8]
[383924642,1757172727156,-400.0,0.00037534,8]
[383924643,1757172727163,-400.0,0.00037534,8]
[383924644,1757172727172,-400.0,0.00037534,8]
[383924645,1757172727180,-608.37,0.00037534,8]
[383924646,1757172727189,-400.0,0.00037534,8]
[383924647,1757172727198,-434.46,0.00037534,8]
[383924648,1757172727206,-400.0,0.00037534,8]
[383924649,1757172727215,-400.0,0.00037534,8]
[383924650,1757172727225,-598.33,0.00037534,8]
[383924651,1757172727234,-400.0,0.00037534,8]
[383924652,1757172727244,-400.0,0.00037534,8]
[383924653,1757172727253,-509.06,0.00037534,8]
[383924654,1757172727265,-502.57,0.00037534,8]
[383924655,1757172727274,-400.0,0.00037534,8]
[383924656,1757172727284,-400.0,0.00037534,8]
[383924657,1757172727295,-255.64492693,0.00037534,8]
[383924658,1757172727305,-435.86,0.00037534,8]
[383924659,1757172727314,-1534.12,0.00037534,8]
[383924660,1757172727323,-400.0,0.00037534,8]
[383924661,1757172727334,-400.0,0.00037534,8]
[383924662,1757172727344,-2648.5,0.00037534,8]
[383924663,1757172727354,-400.0,0.00037534,8]
[383924664,1757172727364,-1732.85,0.00037534,8]
[383924665,1757172727374,-400.0,0.00037534,8]
[383924666,1757172727383,-400.0,0.00037534,8]
[383924667,1757172727393,-400.0,0.00037534,8]
[383924668,1757172727402,-495.11,0.00037534,8]
[383924669,1757172727412,-400.0,0.00037534,8]
[383924670,1757172727421,-1089.37,0.00037534,8]
[383924671,1757172727430,-400.0,0.00037534,8]
[383924672,1757172727440,-400.0,0.00037534,8]
[383924673,1757172727450,-400.0,0.00037534,8]
[383924674,1757172727459,-409.91,0.00037534,8]
[383924675,1757172727469,-2279.31,0.00037534,8]
[383924676,1757172727479,-400.0,0.00037534,8]
[383924677,1757172727489,-400.0,0.00037534,8]
[383924678,1757172727499,-1049.01,0.00037534,8]
[383924679,1757172727508,-400.0,0.00037534,8]
[383924680,1757172727517,-400.0,0.00037534,8]
[383924681,1757172727527,-457.92,0.00037534,8]
[383924682,1757172727536,-427.44,0.00037534,8]
[383924683,1757172727546,-400.0,0.00037534,8]
[383924684,1757172727555,-2989.69,0.00037534,8]
[383924685,1757172727564,-303.621186,0.00037534,8]
[383924686,1757172727573,-255.724684,0.00037534,8]
[383924687,1757172727583,-479.57,0.00037534,8]
[383924688,1757172727592,-571.91,0.00037534,8]
[383924689,1757172727602,-2140.52,0.00037534,8]
[383924690,1757172727611,-400.0,0.00037534,8]
[383924691,1757172727621,-400.0,0.00037534,8]
[383924692,1757172727631,-756.95,0.00037534,8]
[383924693,1757172727640,-400.0,0.00037534,8]
[383924694,1757172727650,-400.0,0.00037534,8]
[383924695,1757172727659,-400.0,0.00037534,8]
[383924696,1757172727669,-400.0,0.00037534,8]
[383924697,1757172727679,-673.56,0.00037534,8]
[383924698,1757172727689,-400.0,0.00037534,8]
[383924699,1757172727699,-423.16302,0.00037534,8]
[383924700,1757172727709,-400.0,0.00037534,8]
[383924701,1757172727719,-1233.86,0.00037534,8]
[383924702,1757172727729,-945.88,0.00037534,8]
[383924703,1757172727739,-419.78,0.00037534,8]
[383924704,1757172727748,-604.44,0.00037534,8]
[383924705,1757172727758,-992.17,0.00037534,8]
[383924706,1757172727768,-400.0,0.00037534,8]
[383924707,1757172727778,-400.0,0.00037534,8]
[383924708,1757172727788,-1045.05,0.00037534,8]
[383924709,1757172727798,-429.91,0.00037534,8]
[383924710,1757172727808,-400.0,0.00037534,8]
[383924711,1757172727817,-400.0,0.00037534,8]
[383924712,1757172727827,-400.0,0.00037534,8]
[383924713,1757172727836,-413.34,0.00037534,8]
[383924714,1757172727846,-400.0,0.00037534,8]
[383924715,1757172727856,-400.0,0.00037534,8]
[383924716,1757172727866,-400.0,0.00037534,8]
[383924717,1757172727876,-400.0,0.00037534,8]
[383924718,1757172727886,-790.23,0.00037534,8]
[383924719,1757172727895,-400.0,0.00037534,8]
[383924720,1757172727905,-2436.64,0.00037534,8]
[383924721,1757172727915,-400.0,0.00037534,8]
[383924722,1757172727925,-1094.56,0.00037534,8]
[383924723,1757172727935,-400.0,0.00037534,8]
[383924724,1757172727944,-730.61,0.00037534,8]
[383924725,1757172727954,-400.0,0.00037534,8]
[383924726,1757172727970,-535.79,0.00037534,8]
[383924727,1757172727980,-651.47,0.00037534,8]
[383924728,1757172727990,-455.69148874,0.00037534,8]
[383924729,1757172728000,-418.47,0.00037534,8]
[383924730,1757172728010,-2213.66,0.00037534,8]
[383924731,1757172728019,-652.06,0.00037534,8]
[383924732,1757172728029,-458.46,0.00037534,8]
[383924733,1757172728040,-455.66,0.00037534,8]
[383924734,1757172728049,-400.0,0.00037534,8]
[383924735,1757172728060,-453.6,0.00037534,8]
[383924736,1757172728069,-400.0,0.00037534,8]
[383924737,1757172728079,-400.0,0.00037534,8]
[383924738,1757172728089,-1828.0,0.00037534,8]
[383924739,1757172728099,-644.18,0.00037534,8]
[383924740,1757172728108,-1117.06,0.00037534,8]
[383924741,1757172728118,-400.0,0.00037534,8]
[383924742,1757172728127,-553.32,0.00037534,8]
[383924743,1757172728136,-1820.35,0.00037534,8]
[383924744,1757172728146,-400.0,0.00037534,8]
[383924745,1757172728155,-400.0,0.00037534,8]
[383924746,1757172728164,-671.63,0.00037534,8]
[383924747,1757172728174,-400.0,0.00037534,8]
[383924748,1757172728183,-1362.35,0.00037534,8]
[383924749,1757172728193,-1175.85,0.00037534,8]
[383924750,1757172728202,-400.0,0.00037534,8]
[383924751,1757172728212,-631.4,0.00037534,8]
[383924752,1757172728222,-400.0,0.00037534,8]
[383924753,1757172728231,-400.0,0.00037534,8]
[383924754,1757172728241,-400.0,0.00037534,8]
[383924755,1757172728251,-400.0,0.00037534,8]
[383924756,1757172728261,-400.0,0.00037534,8]
[383924757,1757172728274,-400.0,0.00037534,8]
[383924758,1757172728283,-400.0,0.00037534,8]
[383924759,1757172728293,-186.98,0.00037534,8]
[383924760,1757172728487,-1093.83,0.00037534,8]
[383924761,1757172728504,-400.0,0.00037534,8]
[383924762,1757172728515,-490.39,0.00037534,8]
[383924763,1757172728524,-400.0,0.00037534,8]
[383924764,1757172728534,-400.0,0.00037534,8]
[383924765,1757172728544,-543.1,0.00037534,8]
[383924766,1757172728555,-428.7,0.00037534,8]
[383924767,1757172728566,-400.0,0.00037534,8]
[383924768,1757172728576,-405.0953442,0.00037534,8]
[383924769,1757172728586,-400.0,0.00037534,8]
[383924770,1757172728597,-600.99,0.00037534,8]
[383924771,1757172728608,-515.24,0.00037534,8]
[383924772,1757172728619,-400.0,0.00037534,8]
[383924773,1757172728630,-400.0,0.00037534,8]
[383924774,1757172728640,-533.89,0.00037534,8]
[383924775,1757172728650,-400.0,0.00037534,8]
[383924776,1757172728661,-501.41,0.00037534,8]
[383924777,1757172728671,-868.68,0.00037534,8]
[383924778,1757172728684,-400.0,0.00037534,8]
[383924779,1757172728695,-472.9,0.00037534,8]
[383924780,1757172728705,-966.02,0.00037534,8]
[383924781,1757172728715,-400.0,0.00037534,8]
[383924782,1757172728725,-466.62,0.00037534,8]
[383924783,1757172728735,-1411.12,0.00037534,8]
[383924784,1757172728746,-400.0,0.00037534,8]
[383924785,1757172728758,-578.15,0.00037534,8]
[383924786,1757172728768,-400.0,0.00037534,8]
[383924787,1757172728779,-400.0,0.00037534,8]
[383924788,1757172728788,-400.0,0.00037534,8]
[383924789,1757172728799,-1435.63,0.00037534,8]
[383924790,1757172728810,-400.0,0.00037534,8]
[383924791,1757172728820,-788.1,0.00037534,8]
[383924792,1757172728830,-619.13,0.00037534,8]
[383924793,1757172728840,-400.0,0.00037534,8]
[383924794,1757172728850,-619.22,0.00037534,8]
[383924795,1757172728861,-400.0,0.00037534,8]
[383924796,1757172728871,-3490.54,0.00037534,8]
[383924797,1757172728881,-2760.38,0.00037534,8]
[383924798,1757172728892,-435.82,0.00037534,8]
[383924799,1757172728902,-400.0,0.00037534,8]
[383924800,1757172728912,-415.83,0.00037534,8]
[383924801,1757172728923,-400.0,0.00037534,8]
[383924802,1757172728933,-424.35,0.00037534,8]
[383924803,1757172728943,-2385.83,0.00037534,8]
[383924804,1757172728954,-505.99177614,0.00037534,8]
[383924805,1757172728965,-400.0,0.00037534,8]
[383924806,1757172728979,-574.35,0.00037534,8]
[383924807,1757172728989,-400.0,0.00037534,8]
[383924808,1757172728999,-401.73,0.00037534,8]
[383924809,1757172729008,-400.0,0.00037534,8]
[383924810,1757172729018,-400.0,0.00037534,8]
[383924811,1757172729028,-1126.95,0.00037534,8]
[383924812,1757172729039,-491.37,0.00037534,8]
[383924813,1757172729049,-400.0,0.00037534,8]
[383924814,1757172729059,-4593.42,0.00037534,8]
[383924815,1757172729069,-1283.79,0.00037534,8]
[383924816,1757172729079,-400.0,0.00037534,8]
[383924817,1757172729089,-574.59,0.00037534,8]
[383924818,1757172729099,-400.0,0.00037534,8]
[383924819,1757172729112,-400.0,0.00037534,8]
[383924820,1757172729122,-487.5,0.00037534,8]
[383924821,1757172729130,-400.0,0.00037534,8]
[383924822,1757172729140,-400.0,0.00037534,8]
[383924823,1757172729150,-400.0,0.00037534,8]
[383924824,1757172729160,-400.0,0.00037534,8]
[383924825,1757172729170,-400.0,0.00037534,8]
[383924826,1757172729180,-531.23,0.00037534,8]
[383924827,1757172729189,-400.0,0.00037534,8]
[383924828,1757172729199,-400.0,0.00037534,8]
[383924829,1757172729210,-425.4,0.00037534,8]
[383924830,1757172729220,-400.0,0.00037534,8]
[383924831,1757172729230,-150.0,0.0003755,2]
[383924832,1757172729240,-1425.0,0.00037551,2]
[383924833,1757172729250,-200.0,0.0003756,2]
[383924834,1757172729261,-350.0,0.00037568,5]
[383924835,1757172729275,-417.9216312,0.00037586,2]
[383924836,1757172729285,-855.77024092,0.00037593,2]
[383924837,1757172729296,-500.0,0.000376,13]
[383924838,1757172729307,-758.68,0.000376,30]
[383924839,1757172729317,-150.0,0.00037635,2]
[383924840,1757172729327,-1425.0,0.00037638,2]
[383924841,1757172729337,-300.0,0.00037638,7]
[383924842,1757172729347,-1425.0,0.00037651,2]
[383924843,1757172729358,-1425.0,0.00037658,2]
[383924844,1757172729368,-179.78,0.00037671,2]
[383924845,1757172729378,-444.0,0.00037674,2]
[383924846,1757172729388,-500.0,0.000377,13]
[383924847,1757172729399,-1635.013999,0.000377,26]
[383924848,1757172729408,-1425.0,0.00037709,2]
[383924849,1757172729419,-150.0,0.0003774,2]
[383924850,1757172729430,-7000.0,0.0003774,2]
[383924851,1757172729440,-5888.0,0.00037746,2]
[383924852,1757172729451,-1425.0,0.00037749,2]
[383924853,1757172729462,-1425.0,0.00037751,2]
[383924854,1757172729473,-1425.0,0.00037778,2]
[383924855,1757172729483,-1425.0,0.0003778,2]
[383924856,1757172729493,-1425.0,0.00037786,2]
[383924857,1757172729503,-500.0,0.00037799,8]
[383924858,1757172729513,-150.0,0.00037799,8]
[383924859,1757172729523,-150.0,0.00037799,8]
[383924860,1757172729532,-150.0,0.00037799,8]
[383924861,1757172729542,-500.0,0.00037799,8]
[383924862,1757172729553,-500.0,0.00037799,8]
[383924863,1757172729563,-500.0,0.00037799,8]
[383924864,1757172729573,-500.0,0.00037799,8]
[383924865,1757172729583,-153.69624754,0.00037799,8]
[383924866,1757172729593,-500.0,0.00037799,8]
[383924867,1757172729602,-500.0,0.00037799,8]
[383924868,1757172729612,-150.0,0.00037799,8]
[383924869,1757172729622,-500.0,0.00037799,8]
[383924870,1757172729631,-500.0,0.00037799,8]
[383924871,1757172729641,-500.0,0.00037799,8]
[383924872,1757172729651,-500.0,0.00037799,8]
[383924873,1757172729661,-500.0,0.00037799,8]
[383924874,1757172729671,-150.0,0.00037799,2]
[383924875,1757172729681,-150.0,0.00037799,2]
[383924876,1757172729690,-500.0,0.00037799,8]
[383924877,1757172729701,-500.0,0.00037799,8]
[383924878,1757172729711,-1107.0,0.00037799,8]
[383924879,1757172729720,-150.0,0.00037799,2]
[383924880,1757172729732,-500.0,0.00037799,8]
[383924881,1757172729742,-500.0,0.00037799,8]
[383924882,1757172729753,-500.0,0.00037799,8]
[383924883,1757172729763,-150.0,0.00037799,8]
[383924884,1757172729773,-150.0,0.00037799,8]
[383924885,1757172729783,-150.0,0.00037799,2]
[383924886,1757172729792,-500.0,0.00037799,8]
[383924887,1757172729802,-500.0,0.00037799,8]
[383924888,1757172729814,-500.0,0.00037799,8]
[383924889,1757172729824,-150.0,0.00037799,8]
[383924890,1757172729836,-1123.0,0.00037799,8]
[383924891,1757172729847,-150.0,0.00037799,8]
[383924892,1757172729857,-500.0,0.00037799,2]
[383924893,1757172729868,-500.0,0.00037799,8]
[383924894,1757172729877,-500.0,0.00037799,8]
[383924895,1757172729887,-1457.0,0.00037799,8]
[383924896,1757172729897,-500.0,0.00037799,8]
[383924897,1757172729907,-500.0,0.00037799,8]
[383924898,1757172729919,-1113.0,0.000378,13]
[383924899,1757172729929,-400.0,0.00037807,8]
[383924900,1757172729939,-400.0,0.00037807,8]
[383924901,1757172729950,-400.0,0.00037807,8]
[383924902,1757172729960,-400.0,0.00037807,8]
[383924903,1757172729969,-459.66,0.00037807,8]
[383924904,1757172729979,-496.66,0.00037807,8]
[383924905,1757172729989,-400.0,0.00037807,8]
[383924906,1757172729998,-585.53,0.00037807,8]
[383924907,1757172730008,-400.0,0.00037807,8]
[383924908,1757172730018,-400.0,0.00037807,8]
[383924909,1757172730027,-242.91815036,0.00037807,8]
[383924910,1757172730037,-400.0,0.00037807,8]
[383924911,1757172730047,-408.74633692,0.00037807,8]
[383924912,1757172730057,-400.0,0.00037807,8]
[383924913,1757172730067,-400.0,0.00037807,8]
[383924914,1757172730076,-460.16506574,0.00037807,8]
[383924915,1757172730087,-400.0,0.00037807,8]
[383924916,1757172730099,-413.37,0.00037807,8]
[383924917,1757172730109,-455.35,0.00037807,8]
[383924918,1757172730122,-400.0,0.00037807,8]
[383924919,1757172730133,-400.0,0.00037807,8]
[383924920,1757172730144,-479.11460752,0.00037807,8]
[383924921,1757172730153,-400.0,0.00037807,8]
[383924922,1757172730163,-400.0,0.00037807,8]
[383924923,1757172730173,-466.07,0.00037807,8]
[383924924,1757172730182,-400.0,0.00037807,8]
[383924925,1757172730192,-400.0,0.00037807,8]
[383924926,1757172730202,-400.0,0.00037807,8]
[383924927,1757172730211,-400.0,0.00037807,8]
[383924928,1757172730221,-400.0,0.00037807,8]
[383924929,1757172730231,-414.18,0.00037807,8]
[383924930,1757172730241,-400.0,0.00037807,8]
[383924931,1757172730252,-400.0,0.00037807,8]
[383924932,1757172730262,-459.72,0.00037807,8]
[383924933,1757172730275,-400.0,0.00037807,8]
[383924934,1757172730285,-400.0,0.00037807,8]
[383924935,1757172730294,-400.0,0.00037807,8]
[383924936,1757172730304,-468.97722645,0.00037807,8]
[383924937,1757172730313,-548.30541711,0.00037807,8]
[383924938,1757172730323,-400.0,0.00037807,8]
[383924939,1757172730333,-400.0,0.00037807,8]
[383924940,1757172730344,-400.0,0.00037807,8]
[383924941,1757172730354,-400.0,0.00037807,8]
[383924942,1757172730364,-400.0,0.00037807,8]
[383924943,1757172730373,-400.0,0.00037807,8]
[383924944,1757172730383,-400.0,0.00037807,8]
[383924945,1757172730393,-534.93071969,0.00037807,8]
[383924946,1757172730402,-476.3,0.00037807,8]
[383924947,1757172730412,-400.0,0.00037807,8]
[383924948,1757172730422,-400.0,0.00037807,8]
[383924949,1757172730431,-400.0,0.00037807,8]
[383924950,1757172730442,-400.0,0.00037807,8]
[383924951,1757172730451,-400.0,0.00037807,8]
[383924952,1757172730461,-400.0,0.00037807,8]
[383924953,1757172730471,-400.0,0.00037807,8]
[383924954,1757172730481,-400.0,0.00037807,8]
[383924955,1757172730491,-496.85444526,0.00037807,8]
[383924956,1757172730500,-639.08,0.00037807,8]
[383924957,1757172730510,-400.0,0.00037807,8]
[383924958,1757172730519,-400.0,0.00037807,8]
[383924959,1757172730529,-400.0,0.00037807,8]
[383924960,1757172730539,-400.0,0.00037807,8]
[383924961,1757172730548,-400.0,0.00037807,8]
[383924962,1757172730558,-400.0,0.00037807,8]
[383924963,1757172730567,-400.0,0.00037807,8]
[383924964,1757172730577,-400.0,0.00037807,8]
[383924965,1757172730586,-456.18268736,0.00037807,8]
[383924966,1757172730596,-233.16224239,0.00037807,8]
[383924967,1757172730606,-400.0,0.00037807,8]
[383924968,1757172730616,-400.0,0.00037807,8]
[383924969,1757172730626,-642.97,0.00037807,8]
[383924970,1757172730636,-400.0,0.00037807,8]
[383924971,1757172730645,-656.31,0.00037807,8]
[383924972,1757172730655,-400.0,0.00037807,8]
[383924973,1757172730665,-400.0,0.00037807,8]
[383924974,1757172730676,-400.0,0.00037807,8]
[383924975,1757172730685,-400.0,0.00037807,8]
[383924976,1757172730695,-157.96733576,0.00037807,8]
[383924977,1757172730704,-400.0,0.00037807,8]
[383924978,1757172730715,-464.88,0.00037807,8]
[383924979,1757172730726,-448.28627014,0.00037807,8]
[383924980,1757172730737,-445.43,0.00037807,8]
[383924981,1757172730746,-400.0,0.00037807,8]
[383924982,1757172730756,-400.0,0.00037807,8]
[383924983,1757172730766,-400.0,0.00037807,8]
[383924984,1757172730775,-400.0,0.00037807,8]
[383924985,1757172730785,-400.0,0.00037807,8]
[383924986,1757172730795,-400.0,0.00037807,8]
[383924987,1757172730804,-406.69,0.00037807,8]
[383924988,1757172730814,-400.0,0.00037807,8]
[383924989,1757172730823,-400.0,0.00037807,8]
[383924990,1757172730833,-227.10570983,0.00037807,8]
[383924991,1757172730842,-400.0,0.00037807,8]
[383924992,1757172730852,-400.0,0.00037807,8]
[383924993,1757172730862,-433.34,0.00037807,8]
[383924994,1757172730872,-400.0,0.00037807,8]
[383924995,1757172730881,-400.0,0.00037807,8]
[383924996,1757172730891,-412.0,0.00037807,8]
[383924997,1757172730901,-400.0,0.00037807,8]
[383924998,1757172730911,-178.17423831,0.00037807,8]
[383924999,1757172730921,-951.07,0.00037807,8]
[383925000,1757172730931,-400.0,0.00037807,8]
[383925001,1757172730941,-400.0,0.00037807,8]
[383925002,1757172730951,-400.0,0.00037807,8]
[383925003,1757172730960,-400.0,0.00037807,8]
[383925004,1757172730970,-400.0,0.00037807,8]
[383925005,1757172730980,-400.0,0.00037807,8]
[383925006,1757172731051,-400.0,0.00037807,8]
[383925007,1757172731061,-624.31,0.00037807,8]
[383925008,1757172731071,-802.45,0.00037807,8]
[383925009,1757172731080,-400.0,0.00037807,8]
[383925010,1757172731090,-216.68974521,0.00037807,8]
[383925011,1757172731099,-400.0,0.00037807,8]
[383925012,1757172731108,-400.0,0.00037807,8]
[383925013,1757172731117,-400.0,0.00037807,8]
[383925014,1757172731126,-400.0,0.00037807,8]
[383925015,1757172731136,-410.62761272,0.00037807,8]
[383925016,1757172731145,-504.86,0.00037807,8]
[383925017,1757172731154,-766.84,0.00037807,8]
[383925018,1757172731163,-412.7,0.00037807,8]
[383925019,1757172731172,-424.59,0.00037807,7]
[383925020,1757172731181,-400.0,0.00037807,8]
[383925021,1757172731190,-400.0,0.00037807,8]
[383925022,1757172731199,-400.0,0.00037807,8]
[383925023,1757172731208,-400.0,0.00037807,8]
[383925024,1757172731217,-468.3,0.00037807,8]
[383925025,1757172731226,-400.0,0.00037807,8]
[383925026,1757172731236,-400.0,0.00037807,8]
[383925027,1757172731245,-1774.6,0.00037807,8]
[383925028,1757172731254,-489.02,0.00037807,8]
[383925029,1757172731266,-400.0,0.00037807,8]
[383925030,1757172731275,-400.0,0.00037807,8]
[383925031,1757172731287,-400.0,0.00037807,8]
[383925032,1757172731297,-619.29,0.00037807,8]
[383925033,1757172731307,-478.37,0.00037807,8]
[383925034,1757172731317,-400.0,0.00037807,8]
[383925035,1757172731327,-400.0,0.00037807,8]
[383925036,1757172731338,-426.98,0.00037807,8]
[383925037,1757172731348,-400.0,0.00037807,8]
[383925038,1757172731359,-556.5,0.00037807,8]
[383925039,1757172731368,-5845.89,0.00037807,8]
[383925040,1757172731378,-400.0,0.00037807,8]
[383925041,1757172731388,-400.0,0.00037807,8]
[383925042,1757172731398,-1615.84,0.00037807,8]
[383925043,1757172731407,-400.0,0.00037807,8]
[383925044,1757172731418,-366.80056074,0.00037807,8]
[383925045,1757172731428,-400.0,0.00037807,8]
[383925046,1757172731438,-1654.33,0.00037807,8]
[383925047,1757172731448,-634.1,0.00037807,8]
[383925048,1757172731459,-400.0,0.00037807,8]
[383925049,1757172731469,-400.0,0.00037807,8]
[383925050,1757172731479,-400.0,0.00037807,8]
[383925051,1757172731489,-400.0,0.00037807,8]
[383925052,1757172731499,-3118.41,0.00037807,8]
[383925053,1757172731509,-999.44,0.00037807,8]
[383925054,1757172731520,-955.89,0.00037807,8]
[383925055,1757172731530,-794.28,0.00037807,8]
[383925056,1757172731540,-400.0,0.00037807,8]
[383925057,1757172731550,-895.75,0.00037807,8]
[383925058,1757172731560,-1108.69,0.00037807,8]
[383925059,1757172731570,-1000.18,0.00037807,8]
[383925060,1757172731580,-400.0,0.00037807,8]
[383925061,1757172731590,-699.09,0.00037807,8]
[383925062,1757172731600,-400.0,0.00037807,8]
[383925063,1757172731610,-400.0,0.00037807,8]
[383925064,1757172731619,-400.0,0.00037807,8]
[383925065,1757172731629,-656.84,0.00037807,8]
[383925066,1757172731639,-400.0,0.00037807,8]
[383925067,1757172731650,-400.0,0.00037807,8]
[383925068,1757172731660,-400.0,0.00037807,8]
[383925069,1757172731670,-400.0,0.00037807,8]
[383925070,1757172731680,-2132.96,0.00037807,8]
[383925071,1757172731690,-400.0,0.00037807,8]
[383925072,1757172731702,-1154.3,0.00037807,8]
[383925073,1757172731712,-400.0,0.00037807,8]
[383925074,1757172731721,-1000.0,0.00037807,8]
[383925075,1757172731731,-440.44,0.00037807,8]
[383925076,1757172731741,-2561.85,0.00037807,8]
[383925077,1757172731750,-400.0,0.00037807,8]
[383925078,1757172731760,-400.0,0.00037807,8]
[383925079,1757172731769,-400.0,0.00037807,8]
[383925080,1757172731779,-2611.17,0.00037807,8]
[383925081,1757172731788,-400.0,0.00037807,8]
[383925082,1757172731798,-400.0,0.00037807,8]
[383925083,1757172731807,-2841.49,0.00037807,8]
[383925084,1757172731817,-352.5835642,0.00037807,8]
[383925085,1757172731826,-4849.7581851,0.00037808,2]
[383925086,1757172731836,-383.3170784,0.00037808,8]